lending/lending_fUSD_20241120
["ID","MTS","AMOUNT","RATE_DAILY","PERIOD"]
[342813016,1732143213758,-569.32,0.00060273,120]
[342813017,1732143213767,-999.09,0.00060273,120]
[342813018,1732143213777,-509.24,0.00060273,120]
[342813019,1732143213788,-928.5,0.00060273,120]
[342813020,1732143213799,-1806.6,0.00060273,120]
[342813021,1732143213809,-1129.79,0.00060273,120]
[342813022,1732143213819,-500.0,0.00060273,120]
[342813023,1732143213829,-2425.19,0.00060273,120]
[342813024,1732143213839,-569.99,0.00060273,120]
[342813025,1732143213850,-625.0,0.00060273,120]
[342813026,1732143213860,-1018.93,0.00060273,120]
[342813027,1732143213871,-2073.72,0.00060273,120]
[342813028,1732143213881,-1011.93,0.00060273,120]
[342813029,1732143213892,-1257.41,0.00060273,120]
[342813030,1732143213902,-1328.54,0.00060273,120]
[342813031,1732143213913,-893.2,0.00060273,120]
[342813032,1732143213923,-878.56,0.00060273,120]
[342813033,1732143213936,-1954.12,0.00060273,120]
[342813034,1732143213947,-1107.33,0.00060273,120]
[342813035,1732143213957,-520.13656739,0.00060273,120]
[342813036,1732143213967,-5394.68,0.00060273,120]
[342813037,1732143213977,-709.28,0.00060273,120]
[342813038,1732143213988,-965.73,0.00060273,120]
[342813039,1732143213998,-543.1,0.00060273,120]
[342813040,1732143214009,-1317.76,0.00060273,120]
[342813041,1732143214019,-594.46,0.00060273,120]
[342813042,1732143214029,-1617.12,0.00060273,120]
[342813043,1732143214040,-569.41,0.00060273,120]
[342813044,1732143214050,-657.08,0.00060273,120]
[342813045,1732143214061,-628.07,0.00060273,120]
[342813046,1732143214071,-4865.56,0.00060273,120]
[342813047,1732143214081,-1510.86,0.00060273,120]
[342813048,1732143214091,-2529.98,0.00060273,120]
[342813049,1732143214102,-635.24,0.00060273,120]
[342813050,1732143214112,-750.97,0.00060273,120]
[342813051,1732143214122,-1489.09,0.00060273,120]
[342813052,1732143214133,-1761.11,0.00060273,120]
[342813053,1732143214143,-624.76,0.00060273,120]
[342813054,1732143214153,-46265.17,0.00060273,120]
[342813055,1732143214163,-500.0,0.00060273,120]
[342813056,1732143214174,-880.93,0.00060273,120]
[342813057,1732143214184,-644.52,0.00060273,120]
[342813058,1732143214194,-4390.12,0.00060273,120]
[342813059,1732143214205,-3641.91,0.00060273,120]
[342813060,1732143214215,-2046.77,0.00060273,120]
[342813061,1732143214225,-500.0,0.00060273,120]
[342813062,1732143214235,-519.31,0.00060273,120]
[342813063,1732143214245,-1582.94,0.00060273,120]
[342813064,1732143214256,-1566.08,0.00060273,120]
[342813065,1732143214266,-1540.18,0.00060273,120]
[342813066,1732143214276,-1118.01,0.00060273,120]
[342813067,1732143214286,-32182.96,0.00060273,120]
[342813068,1732143214297,-2395.44,0.00060273,120]
[342813069,1732143214306,-774.88,0.00060273,120]
[342813070,1732143214317,-3018.97,0.00060273,120]
[342813071,1732143214326,-500.0,0.00060273,120]
[342813072,1732143214336,-500.0,0.00060273,120]
[342813073,1732143214346,-1221.56,0.00060273,120]
[342813074,1732143214356,-949.33,0.00060273,120]
[342813075,1732143214366,-512.47,0.00060273,120]
[342813076,1732143214376,-975.73,0.00060273,120]
[342813077,1732143214386,-500.0,0.00060273,120]
[342813078,1732143214396,-1680.87,0.00060273,120]
[342813079,1732143214406,-2068.97,0.00060273,120]
[342813080,1732143214416,-509.92,0.00060273,120]
[342813081,1732143214425,-2386.08,0.00060273,120]
[342813082,1732143214435,-2587.78,0.00060273,120]
[342813083,1732143214445,-1481.97,0.00060273,120]
[342813084,1732143214455,-500.0,0.00060273,120]
[342813085,1732143214465,-1478.74,0.00060273,120]
[342813086,1732143214474,-500.0,0.00060273,120]
[342813087,1732143214484,-580.13,0.00060273,120]
[342813088,1732143214494,-816.51,0.00060273,120]
[342813089,1732143214505,-1753.89,0.00060273,120]
[342813090,1732143214515,-562.17,0.00060273,120]
[342813091,1732143214525,-10880.09,0.00060273,120]
[342813092,1732143214534,-2245.37,0.00060273,120]
[342813093,1732143214544,-3622.31,0.00060273,120]
[342813094,1732143214554,-502.6,0.00060273,120]
[342813095,1732143214563,-500.0,0.00060273,120]
[342813096,1732143214573,-1317.84,0.00060273,120]
[342813097,1732143214583,-1518.89,0.00060273,90]
[342813098,1732143214593,-1643.31,0.00060273,120]
[342813099,1732143214603,-1298.63,0.00060273,120]
[342813100,1732143214613,-943.47,0.00060273,120]
[342813101,1732143214622,-579.31452349,0.00060273,120]
[342813102,1732143214632,-500.0,0.00060273,120]
[342813103,1732143214642,-1649.32,0.00060273,120]
[342813104,1732143214652,-550.87,0.00060273,120]
[342813105,1732143214661,-5640.48,0.00060273,120]
[342813106,1732143214671,-2158.9,0.00060273,120]
[342813107,1732143214680,-1165.26,0.00060273,120]
[342813108,1732143214690,-1244.51,0.00060273,120]
[342813109,1732143214699,-516.5,0.00060273,120]
[342813110,1732143214709,-1110.14,0.00060273,120]
[342813111,1732143214719,-9870.91,0.00060273,120]
[342813112,1732143214728,-986.78,0.00060273,120]
[342813113,1732143214738,-567.02,0.00060273,120]
[342813114,1732143214748,-651.9,0.00060273,120]
[342813115,1732143214759,-3368.96,0.00060273,120]
[342813116,1732143214768,-1042.13,0.00060273,120]
[342813117,1732143214778,-6243.58,0.00060273,120]
[342813118,1732143214787,-1021.75,0.00060273,120]
[342813119,1732143214797,-1221.81,0.00060273,120]
[342813120,1732143214806,-1378.96,0.00060273,120]
[342813121,1732143214817,-1402.48,0.00060273,120]
[342813122,1732143214826,-1098.99,0.00060273,7]
[342813123,1732143214836,-2324.89,0.00060273,120]
[342813124,1732143214847,-3357.52,0.00060273,120]
[342813125,1732143214859,-631.52,0.00060273,120]
[342813126,1732143214869,-1503.83,0.00060273,120]
[342813127,1732143214880,-500.0,0.00060273,120]
[342813128,1732143214890,-610.46,0.00060273,120]
[342813129,1732143214899,-676.3,0.00060273,120]
[342813130,1732143214909,-4485.14,0.00060273,120]
[342813131,1732143214918,-1449.22,0.00060273,120]
[342813132,1732143214928,-802.14,0.00060273,120]
[342813133,1732143214940,-1005.77,0.00060273,120]
[342813134,1732143214949,-62267.29,0.00060273,5]
[342813135,1732143214959,-733.47,0.00060273,120]
[342813136,1732143214971,-1000.0,0.00060273,120]
[342813137,1732143214982,-1200.11,0.00060273,120]
[342813138,1732143214991,-4633.73,0.00060273,120]
[342813139,1732143215003,-500.0,0.00060273,120]
[342813140,1732143215013,-1462.06,0.00060273,120]
[342813141,1732143215023,-1071.61,0.00060273,120]
[342813142,1732143215033,-1246.53,0.00060273,120]
[342813143,1732143215043,-665.76,0.00060273,120]
[342813144,1732143215053,-1033.25,0.00060273,120]
[342813145,1732143215062,-1619.4,0.00060273,120]
[342813146,1732143215071,-4155.63,0.00060273,120]
[342813147,1732143215081,-500.0,0.00060273,120]
[342813148,1732143215090,-534.16,0.00060273,120]
[342813149,1732143215101,-716.03,0.00060273,120]
[342813150,1732143215110,-710.7,0.00060273,120]
[342813151,1732143215120,-1328.15,0.00060273,120]
[342813152,1732143215130,-3842.23,0.00060273,120]
[342813153,1732143215140,-1770.4,0.00060273,120]
[342813154,1732143215151,-1828.16,0.00060273,120]
[342813155,1732143215161,-734.2,0.00060273,120]
[342813156,1732143215172,-4113.57,0.00060273,120]
[342813157,1732143215182,-3361.09,0.00060273,120]
[342813158,1732143215191,-2336.41,0.00060273,120]
[342813159,1732143215201,-914.26,0.00060273,120]
[342813160,1732143215210,-2227.59,0.00060273,120]
[342813161,1732143215220,-1225.66,0.00060273,120]
[342813162,1732143215230,-1793.12,0.00060273,120]
[342813163,1732143215240,-1199.34,0.00060273,120]
[342813164,1732143215249,-818.4,0.00060273,120]
[342813165,1732143215265,-945.67,0.00060273,120]
[342813166,1732143215275,-4656.57,0.00060273,120]
[342813167,1732143215284,-656.2,0.00060273,120]
[342813168,1732143215294,-1601.15,0.00060273,120]
[342813169,1732143215303,-2590.51,0.00060273,120]
[342813170,1732143215313,-1087.48,0.00060273,120]
[342813171,1732143215323,-617.4,0.00060273,120]
[342813172,1732143215332,-1021.22,0.00060273,120]
[342813173,1732143215342,-530.21,0.00060273,120]
[342813174,1732143215352,-861.7,0.00060273,120]
[342813175,1732143215362,-4078.12,0.00060273,120]
[342813176,1732143215371,-609.85,0.00060273,120]
[342813177,1732143215380,-1271.08,0.00060273,120]
[342813178,1732143215390,-630.13,0.00060273,120]
[342813179,1732143215400,-1053.42,0.00060273,120]
[342813180,1732143215409,-10737.37,0.00060273,21]
[342813181,1732143215419,-868.75,0.00060273,120]
[342813182,1732143215428,-3054.48,0.00060273,120]
[342813183,1732143215438,-772.0,0.00060273,120]
[342813184,1732143215447,-790.82,0.00060273,120]
[342813185,1732143215456,-1615.7,0.00060273,120]
[342813186,1732143215466,-576.17,0.00060273,120]
[342813187,1732143215475,-2780.77,0.00060273,120]
[342813188,1732143215485,-3170.06,0.00060273,120]
[342813189,1732143215494,-530.51,0.00060273,120]
[342813190,1732143215506,-814.28,0.00060273,120]
[342813191,1732143215515,-584.33891712,0.00060273,120]
[342813192,1732143215525,-1053.94,0.00060273,120]
[342813193,1732143215534,-832.21,0.00060273,120]
[342813194,1732143215544,-559.12,0.00060273,120]
[342813195,1732143215554,-962.23,0.00060273,120]
[342813196,1732143215563,-4610.65,0.00060273,120]
[342813197,1732143215573,-630.95,0.00060273,120]
[342813198,1732143215583,-1497.99,0.00060273,120]
[342813199,1732143215593,-500.0,0.00060273,120]
[342813200,1732143215603,-3030.53,0.00060273,120]
[342813201,1732143215614,-2002.76,0.00060273,120]
[342813202,1732143215624,-4996.62,0.00060273,120]
[342813203,1732143215634,-1038.47,0.00060273,120]
[342813204,1732143215644,-7093.52,0.00060273,120]
[342813205,1732143215655,-3755.03,0.00060273,120]
[342813206,1732143215666,-500.33,0.00060273,120]
[342813207,1732143215677,-1395.84,0.00060273,120]
[342813208,1732143215688,-6717.87,0.00060273,120]
[342813209,1732143215699,-619.43,0.00060273,120]
[342813210,1732143215709,-4210.05,0.00060273,120]
[342813211,1732143215720,-500.0,0.00060273,120]
[342813212,1732143215731,-4619.32,0.00060273,120]
[342813213,1732143215740,-2125.56,0.00060273,120]
[342813214,1732143215751,-1522.48,0.00060273,120]
[342813215,1732143215762,-500.0,0.00060273,120]
[342813216,1732143215771,-2913.49,0.00060273,120]
[342813217,1732143215781,-654.65,0.00060273,120]
[342813218,1732143215791,-6408.58,0.00060273,60]
[342813219,1732143215802,-8536.13,0.00060273,120]
[342813220,1732143215812,-931.52,0.00060273,120]
[342813221,1732143216124,-5185.83,0.00060273,120]
[342813222,1732143216134,-873.24,0.00060273,120]
[342813223,1732143216143,-1838.8,0.00060273,120]
[342813224,1732143216152,-1525.45,0.00060273,120]
[342813225,1732143216162,-1373.0,0.00060273,120]
[342813226,1732143216171,-1659.86,0.00060273,120]
[342813227,1732143216181,-500.0,0.00060273,120]
[342813228,1732143216191,-5907.77,0.00060273,120]
[342813229,1732143216200,-647.02,0.00060273,120]
[342813230,1732143216209,-1210.69,0.00060273,120]
[342813231,1732143216219,-526.64,0.00060273,120]
[342813232,1732143216228,-201.51576997,0.00060273,120]
[342813233,1732143216238,-12504.89,0.00060273,120]
[342813234,1732143216248,-2076.98,0.00060273,120]
[342813235,1732143216259,-1181.36,0.00060273,120]
[342813236,1732143216269,-677.21,0.00060273,120]
[342813237,1732143216278,-1109.03,0.00060273,120]
[342813238,1732143216288,-2434.04,0.00060273,120]
[342813239,1732143216298,-557.25,0.00060273,120]
[342813240,1732143216307,-1099.32,0.00060273,120]
[342813241,1732143216317,-651.95,0.00060273,120]
[342813242,1732143216326,-4681.73,0.00060273,120]
[342813243,1732143216336,-757.95,0.00060273,120]
[342813244,1732143216346,-986.66,0.00060273,120]
[342813245,1732143216356,-880.48,0.00060273,120]
[342813246,1732143216365,-1502.22,0.00060273,120]
[342813247,1732143216375,-1166.87,0.00060273,120]
[342813248,1732143216384,-500.0,0.00060273,120]
[342813249,1732143216394,-1450.31,0.00060273,120]
[342813250,1732143216404,-548.14,0.00060273,120]
[342813251,1732143216413,-2144.4,0.00060273,120]
[342813252,1732143216424,-14474.38,0.00060273,120]
[342813253,1732143216433,-16729.96,0.00060273,120]
[342813254,1732143216443,-441.27051059,0.00060273,120]
[342813255,1732143216452,-1032.14,0.00060273,120]
[342813256,1732143216462,-500.0,0.00060273,120]
[342813257,1732143216471,-533.88,0.00060273,120]
[342813258,1732143216481,-2375.8,0.00060273,120]
[342813259,1732143216490,-726.78,0.00060273,120]
[342813260,1732143216500,-3517.73,0.00060273,120]
[342813261,1732143216513,-500.0,0.00060273,120]
[342813262,1732143216522,-2949.54,0.00060273,120]
[342813263,1732143216531,-680.36,0.00060273,120]
[342813264,1732143216541,-629.45,0.00060273,120]
[342813265,1732143216551,-1835.32,0.00060273,120]
[342813266,1732143216560,-567.38,0.00060273,120]
[342813267,1732143216570,-1270.02,0.00060273,120]
[342813268,1732143216579,-988.11,0.00060273,120]
[342813269,1732143216588,-1077.92,0.00060273,120]
[342813270,1732143216598,-1080.78,0.00060273,120]
[342813271,1732143216607,-730.91,0.00060273,120]
[342813272,1732143216616,-794.46,0.00060273,120]
[342813273,1732143216626,-836.47,0.00060273,120]
[342813274,1732143216635,-877.06,0.00060273,120]
[342813275,1732143216645,-1006.93,0.00060273,120]
[342813276,1732143216654,-873.31,0.00060273,120]
[342813277,1732143216663,-1076.47,0.00060273,120]
[342813278,1732143216672,-5067.66,0.00060273,120]
[342813279,1732143216681,-897.49,0.00060273,120]
[342813280,1732143216690,-615.04,0.00060273,120]
[342813281,1732143216700,-537.82,0.00060273,120]
[342813282,1732143216709,-1213.36,0.00060273,120]
[342813283,1732143216718,-1001.49,0.00060273,120]
[342813284,1732143216728,-911.56,0.00060273,120]
[342813285,1732143216736,-1621.15,0.00060273,120]
[342813286,1732143216746,-1004.9,0.00060273,120]
[342813287,1732143216756,-1363.03,0.00060273,120]
[342813288,1732143216765,-670.6,0.00060273,120]
[342813289,1732143216775,-500.0,0.00060273,120]
[342813290,1732143216784,-4519.72,0.00060273,120]
[342813291,1732143216793,-597.02,0.00060273,120]
[342813292,1732143216803,-681.14,0.00060273,120]
[342813293,1732143216812,-1529.3,0.00060273,120]
[342813294,1732143216821,-500.0,0.00060273,120]
[342813295,1732143216831,-5382.48,0.00060273,120]
[342813296,1732143216840,-2209.36,0.00060273,120]
[342813297,1732143216850,-640.41,0.00060273,120]
[342813298,1732143216859,-1045.28,0.00060273,120]
[342813299,1732143216868,-3068.22,0.00060274,120]
[342813300,1732143216878,-5000.0,0.00060275,30]
[342813301,1732143216888,-25000.0,0.00060276,30]
[342813302,1732143216899,-674.72531698,0.00060276,120]
[342813303,1732143216908,-245.97244822,0.00060276,120]
[342813304,1732143216918,-300.08402069,0.00060276,120]
[342813305,1732143216927,-1660.45,0.00060296,30]
[342813306,1732143216938,-5000.0,0.00060297,30]
[342813307,1732143216948,-787.85,0.00060298,30]
[342813308,1732143216957,-10000.0,0.000603,120]
[342813309,1732143216966,-10000.0,0.000603,120]
[342813310,1732143216977,-10000.0,0.000603,120]
[342813311,1732143216986,-10000.0,0.000603,120]
[342813312,1732143216995,-10000.0,0.000603,120]
[342813313,1732143217009,-2362.7,0.00060305,30]
[342813314,1732143217020,-5000.0,0.00060312,30]
[342813315,1732143217029,-150.0,0.00060317,120]
[342813316,1732143217039,-2349.58,0.00060329,30]
[342813317,1732143217048,-3566.12,0.00060331,30]
[342813318,1732143217058,-674.72531698,0.00060344,120]
[342813319,1732143217068,-245.97244822,0.00060344,120]
[342813320,1732143217077,-300.08402069,0.00060344,120]
[342813321,1732143217087,-25000.0,0.00060365,30]
[342813322,1732143217096,-150.0,0.00060384,120]
[342813323,1732143217106,-5000.0,0.00060395,30]
[342813324,1732143217116,-5000.0,0.00060398,30]
[342813325,1732143217126,-674.72531698,0.00060411,120]
[342813326,1732143217136,-245.97244822,0.00060411,120]
[342813327,1732143217146,-300.08402069,0.00060411,120]
[342813328,1732143217155,-5000.0,0.00060412,30]
[342813329,1732143217165,-150.0,0.00060427,120]
[342813330,1732143217175,-150.0,0.00060443,120]
[342813331,1732143217184,-5000.0,0.00060457,30]
[342813332,1732143217194,-631.79,0.00060464,30]
[342813333,1732143217204,-4535.51,0.00060473,30]
[342813334,1732143217214,-674.72531698,0.00060478,120]
[342813335,1732143217224,-245.97244822,0.00060478,120]
[342813336,1732143217234,-300.08402069,0.00060478,120]
[342813337,1732143217244,-5000.0,0.00060486,30]
[342813338,1732143217254,-50000.0,0.000605,120]
[342813339,1732143217265,-1000000.0,0.000605,120]
[342813340,1732143217274,-1884.7,0.000605,30]
[342813341,1732143217284,-674.72531698,0.00060545,120]
[342813342,1732143217295,-245.97244822,0.00060545,120]
[342813343,1732143217304,-300.08402069,0.00060545,120]
[342813344,1732143217315,-500.0,0.00060547,120]
[342813345,1732143217325,-500.0,0.00060547,120]
[342813346,1732143217334,-500.0,0.00060547,120]
[342813347,1732143217344,-500.0,0.00060547,120]
[342813348,1732143217354,-1252.22,0.00060547,120]
[342813349,1732143217364,-500.0,0.00060547,120]
[342813350,1732143217373,-500.0,0.00060547,120]
[342813351,1732143217383,-500.0,0.00060547,120]
[342813352,1732143217393,-576.02,0.00060547,120]
[342813353,1732143217404,-771.31,0.00060547,120]
[342813354,1732143217413,-500.0,0.00060547,120]
[342813355,1732143217423,-500.0,0.00060547,120]
[342813356,1732143217433,-500.0,0.00060547,120]
[342813357,1732143217442,-500.0,0.00060547,120]
[342813358,1732143217452,-500.0,0.00060547,120]
[342813359,1732143217462,-500.0,0.00060547,120]
[342813360,1732143217472,-554.38,0.00060547,120]
[342813361,1732143217481,-500.0,0.00060547,120]
[342813362,1732143217491,-601.61,0.00060547,120]
[342813363,1732143217500,-1158.3,0.00060547,120]
[342813364,1732143217512,-500.0,0.00060547,120]
[342813365,1732143217521,-500.0,0.00060547,120]
[342813366,1732143217530,-1261.01,0.00060547,120]
[342813367,1732143217541,-500.0,0.00060547,120]
[342813368,1732143217551,-500.0,0.00060547,120]
[342813369,1732143217560,-595.36838483,0.00060547,120]
[342813370,1732143217570,-598.93,0.00060547,120]
[342813371,1732143217579,-500.0,0.00060547,60]
[342813372,1732143217589,-500.0,0.00060547,120]
[342813373,1732143217599,-500.0,0.00060547,120]
[342813374,1732143217609,-1006.34,0.00060547,120]
[342813375,1732143217619,-500.0,0.00060547,120]
[342813376,1732143217628,-504.43,0.00060547,120]
[342813377,1732143217638,-161.50474162,0.00060547,120]
[342813378,1732143217648,-500.0,0.00060547,120]
[342813379,1732143217658,-500.0,0.00060547,120]
[342813380,1732143217668,-500.0,0.00060547,120]
[342813381,1732143217678,-500.0,0.00060547,120]
[342813382,1732143217688,-557.2347992,0.00060547,120]
[342813383,1732143217697,-616.79331534,0.00060547,120]
[342813384,1732143217707,-1283.37,0.00060547,120]
[342813385,1732143217717,-949.28,0.00060547,120]
[342813386,1732143217727,-588.18,0.00060547,120]
[342813387,1732143217737,-701.26,0.00060547,120]
[342813388,1732143217747,-1332.5,0.00060547,120]
[342813389,1732143217757,-761.37,0.00060547,120]
[342813390,1732143217767,-500.0,0.00060547,120]
[342813391,1732143217778,-673.21,0.00060547,120]
[342813392,1732143217788,-500.0,0.00060547,120]
[342813393,1732143217798,-570.71,0.00060547,120]
[342813394,1732143217809,-216.87,0.00060547,7]
[342813395,1732143217819,-500.0,0.00060547,120]
[342813396,1732143217829,-1647.84,0.00060547,120]
[342813397,1732143217840,-688.18,0.00060547,120]
[342813398,1732143217851,-335.16,0.00060547,120]
[342813399,1732143217861,-672.22,0.00060547,120]
[342813400,1732143217870,-901.77,0.00060547,120]
[342813401,1732143217881,-500.0,0.00060547,120]
[342813402,1732143217892,-191.99260556,0.00060547,120]
[342813403,1732143217902,-749.97,0.00060547,120]
[342813404,1732143217911,-500.0,0.00060547,120]
[342813405,1732143217921,-874.95,0.00060547,120]
[342813406,1732143217932,-705.26,0.00060547,120]
[342813407,1732143217942,-1584.28,0.00060547,120]
[342813408,1732143217953,-500.0,0.00060547,120]
[342813409,1732143217963,-698.15,0.00060547,120]
[342813410,1732143217974,-862.02,0.00060547,120]
[342813411,1732143217984,-710.13,0.00060547,120]
[342813412,1732143217994,-500.0,0.00060547,120]
[342813413,1732143218005,-500.0,0.00060547,120]
[342813414,1732143218014,-575.87,0.00060547,120]
[342813415,1732143218024,-533.41,0.00060547,120]
[342813416,1732143218034,-500.0,0.00060547,120]
[342813417,1732143218045,-1044.98,0.00060547,120]
[342813418,1732143218055,-555.53648074,0.00060547,120]
[342813419,1732143218065,-550.21,0.00060547,120]
[342813420,1732143218074,-500.0,0.00060547,120]
[342813421,1732143218084,-838.1,0.00060547,120]
[342813422,1732143218094,-500.0,0.00060547,120]
[342813423,1732143218103,-598.39,0.00060547,120]
[342813424,1732143218113,-500.0,0.00060547,120]
[342813425,1732143218122,-500.0,0.00060547,120]
[342813426,1732143218132,-876.64,0.00060547,120]
[342813427,1732143218142,-678.26,0.00060547,120]
[342813428,1732143218151,-500.0,0.00060547,120]
[342813429,1732143218161,-853.3,0.00060547,120]
[342813430,1732143218171,-577.89,0.00060547,120]
[342813431,1732143218180,-528.71,0.00060547,120]
[342813432,1732143218190,-1058.89,0.00060547,120]
[342813433,1732143218199,-500.0,0.00060547,120]
[342813434,1732143218210,-929.3,0.00060547,120]
[342813435,1732143218219,-500.0,0.00060547,120]
[342813436,1732143218228,-516.05,0.00060547,120]
[342813437,1732143218238,-500.0,0.00060547,120]
[342813438,1732143218247,-839.52,0.00060547,120]
[342813439,1732143218259,-1582.8,0.00060547,120]
[342813440,1732143218271,-512.91,0.00060547,120]
[342813441,1732143218281,-500.0,0.00060547,120]
[342813442,1732143218290,-818.09,0.00060547,60]
[342813443,1732143218300,-910.7,0.00060547,120]
[342813444,1732143218309,-500.0,0.00060547,120]
[342813445,1732143218318,-543.92998167,0.00060547,120]
[342813446,1732143218328,-686.07,0.00060547,120]
[342813447,1732143218339,-932.52,0.00060547,120]
[342813448,1732143218350,-718.84,0.00060547,120]
[342813449,1732143218361,-500.0,0.00060547,120]
[342813450,1732143218371,-566.64,0.00060547,120]
[342813451,1732143218381,-500.0,0.00060547,120]
[342813452,1732143218391,-500.0,0.00060547,120]
[342813453,1732143218400,-581.13,0.00060547,120]
[342813454,1732143218409,-528.98,0.00060547,120]
[342813455,1732143218419,-500.0,0.00060547,120]
[342813456,1732143218428,-1275.31,0.00060547,120]
[342813457,1732143218561,-694.38,0.00060547,120]
[342813458,1732143218570,-558.19,0.00060547,120]
[342813459,1732143218580,-512.65,0.00060547,120]
[342813460,1732143218590,-646.55,0.00060547,120]
[342813461,1732143218599,-889.52,0.00060547,120]
[342813462,1732143218609,-500.0,0.00060547,120]
[342813463,1732143218619,-1844.67,0.00060547,120]
[342813464,1732143218628,-1345.16,0.00060547,120]
[342813465,1732143218638,-1167.24,0.00060547,120]
[342813466,1732143218648,-577.22,0.00060547,120]
[342813467,1732143218657,-1354.36,0.00060547,120]
[342813468,1732143218667,-786.11,0.00060547,120]
[342813469,1732143218676,-1126.54,0.00060547,120]
[342813470,1732143218685,-819.5,0.00060547,120]
[342813471,1732143218694,-810.54,0.00060547,120]
[342813472,1732143218704,-1630.49,0.00060547,120]
[342813473,1732143218713,-500.0,0.00060547,120]
[342813474,1732143218724,-500.0,0.00060547,120]
[342813475,1732143218735,-1539.37,0.00060547,120]
[342813476,1732143218746,-1061.11,0.00060547,120]
[342813477,1732143218759,-500.0,0.00060547,120]
[342813478,1732143218768,-616.53,0.00060547,120]
[342813479,1732143218777,-1163.7,0.00060547,120]
[342813480,1732143218786,-769.28,0.00060547,120]
[342813481,1732143218795,-500.0,0.00060547,120]
[342813482,1732143218805,-1697.48,0.00060547,120]
[342813483,1732143218814,-768.83,0.00060547,120]
[342813484,1732143218825,-500.0,0.00060547,120]
[342813485,1732143218835,-1494.04,0.00060547,120]
[342813486,1732143218846,-500.0,0.00060547,120]
[342813487,1732143218856,-583.76,0.00060547,120]
[342813488,1732143218866,-598.71,0.00060547,120]
[342813489,1732143218876,-500.0,0.00060547,120]
[342813490,1732143218885,-1417.12,0.00060547,120]
[342813491,1732143218896,-500.0,0.00060547,120]
[342813492,1732143218906,-514.86,0.00060547,120]
[342813493,1732143218917,-1024.27,0.00060547,120]
[342813494,1732143218927,-580.28,0.00060547,120]
[342813495,1732143218940,-583.69,0.00060547,120]
[342813496,1732143218950,-625.85,0.00060547,120]
[342813497,1732143218961,-1242.02,0.00060547,120]
[342813498,1732143218971,-500.0,0.00060547,120]
[342813499,1732143218981,-1011.03,0.00060547,120]
[342813500,1732143218991,-1642.42,0.00060547,7]
[342813501,1732143219000,-500.0,0.00060547,120]
[342813502,1732143219017,-835.63,0.00060547,120]
[342813503,1732143219027,-1168.69,0.00060547,120]
[342813504,1732143219038,-785.67,0.00060547,120]
[342813505,1732143219048,-526.48,0.00060547,120]
[342813506,1732143219058,-500.0,0.00060547,120]
[342813507,1732143219068,-500.0,0.00060547,120]
[342813508,1732143219078,-1791.8,0.00060547,120]
[342813509,1732143219088,-785.27,0.00060547,120]
[342813510,1732143219099,-1740.08,0.00060547,120]
[342813511,1732143219108,-764.29,0.00060547,120]
[342813512,1732143219118,-500.0,0.00060547,120]
[342813513,1732143219128,-830.14,0.00060547,120]
[342813514,1732143219138,-937.69,0.00060547,120]
[342813515,1732143219148,-500.0,0.00060547,120]